bitfinex/quotes_SOLUSD_20250924
["timestamp","ask_amount","ask_price","bid_price","bid_amount"]
[1758710899137,13.59559401,210.72,210.71,0.66]
[1758710899331,16.77992279,210.74,210.71,0.66]
[1758710899532,13.59559401,210.76,210.72,1.50277406]
[1758710899745,13.59559401,210.76,210.73,0.66]
[1758710899951,13.59559401,210.79,210.75,1.50277406]
[1758710900140,13.59559401,210.79,210.76,2.16277406]
[1758710900550,16.78312651,210.79,210.76,2.16277406]
[1758710900737,13.59559401,210.79,210.76,2.16277406]
[1758710900943,14.21559401,210.79,210.76,1.50277406]
[1758710901151,13.59559401,210.79,210.76,1.50277406]
[1758710901538,18.33975116,210.79,210.76,1.50277406]
[1758710901733,5.36415715,210.79,210.77,1.50277406]
[1758710902445,4.74415715,210.79,210.77,1.50277406]
[1758710902843,4.88599458,210.8,210.77,1.50277406]
[1758710903159,5.50599458,210.8,210.77,1.50277406]
[1758710904765,5.50599458,210.8,210.77,2.34409489]
[1758710905434,4.88599458,210.8,210.77,2.34409489]
[1758710905635,5.36424982,210.79,210.77,2.34409489]
[1758710905851,5.36424982,210.79,210.76,2.34409489]
[1758710907458,13.59559401,210.77,210.76,2.34409489]
[1758710908463,13.59559401,210.78,210.76,2.34409489]
[1758710909964,13.59559401,210.78,210.75,2.34409489]
[1758710910165,13.59559401,210.78,210.75,3.05409489]
[1758710910469,13.59559401,210.85,210.77,2.34409489]
[1758710910667,13.59559401,210.85,210.82,2.34409489]
[1758710910843,3.17830072,210.86,210.83,3.05409489]
[1758710911037,3.17830072,210.86,210.83,0.71]
[1758710911233,13.59559401,210.85,210.83,2.34409489]
[1758710911442,13.59559401,210.85,210.84,3.05409489]
[1758710911647,0.2,210.88,210.84,3.05409489]
[1758710911870,0.2,210.88,210.85,3.05409489]
[1758710912260,0.2,210.88,210.86,0.71]
[1758710912439,0.2,210.88,210.86,3.05409489]
[1758710916571,0.2,210.88,210.86,0.71]
[1758710917669,0.2,210.88,210.87,3.05409489]
[1758710918362,0.2,210.88,210.87,17.30892372]
[1758710921167,0.2,210.88,210.87,14.96482883]
[1758710921346,4.94203338,210.88,210.85,3.05409489]
[1758710921548,13.59559401,210.87,210.84,2.34409489]
[1758710921845,13.59559401,210.87,210.84,16.6496889]
[1758710922047,13.59559401,210.87,210.84,3.05409489]
[1758710922349,13.59559401,210.87,210.85,0.71]
[1758710922550,13.59559401,210.86,210.83,13.59559401]
[1758710922753,13.59559401,210.86,210.81,2.34409489]
[1758710922949,13.59559401,210.84,210.81,16.60434445]
[1758710923166,13.59559401,210.86,210.81,17.31434445]
[1758710923367,13.59559401,210.86,210.81,3.05409489]
[1758710923543,14.21559401,210.86,210.82,0.71]
[1758710923742,13.59559401,210.84,210.82,0.71]
[1758710925243,13.59559401,210.84,210.81,13.59559401]
[1758710925443,13.59559401,210.84,210.81,16.6496889]
[1758710925887,13.59559401,210.84,210.82,0.71]
[1758710926173,4.74296591,210.84,210.82,0.71]
[1758710926355,4.74296591,210.84,210.79,4.74401297]
[1758710926545,13.59559401,210.85,210.82,2.34409489]
[1758710926750,13.59559401,210.85,210.83,0.71]
[1758710927546,13.79559401,210.88,210.84,3.05409489]
[1758710927773,18.5376517,210.88,210.85,0.71]
[1758710928172,18.5376517,210.88,210.84,2.34409489]
[1758710928347,19.1576517,210.88,210.82,3.05409489]
[1758710928788,19.1576517,210.88,210.82,17.31298888]
[1758710929686,19.1576517,210.88,210.83,0.71]
[1758710930244,19.1576517,210.88,210.84,0.71]
[1758710931479,18.5376517,210.88,210.84,0.71]
[1758710931851,19.1576517,210.88,210.84,0.71]
[1758710933457,19.1576517,210.88,210.82,17.29298888]
[1758710933864,21.50174659,210.88,210.82,14.94889399]
[1758710934558,2.34409489,210.85,210.82,14.25889399]
[1758710934766,13.59559401,210.83,210.77,3.03409489]
[1758710934958,13.59559401,210.83,210.78,3.03409489]
[1758710935260,13.59559401,210.83,210.79,0.69]
[1758710935459,13.59559401,210.83,210.78,2.34409489]
[1758710935661,13.59559401,210.83,210.79,0.69]
[1758710935859,18.33892995,210.83,210.8,0.69]
[1758710936067,13.59559401,210.87,210.82,2.34409489]
[1758710936271,13.59559401,210.87,210.83,0.69]
[1758710936459,13.59559401,210.87,210.84,0.69]
[1758710936874,18.33785227,210.87,210.84,0.69]
[1758710937080,18.33785227,210.87,210.82,15.9396889]
[1758710937277,18.33785227,210.87,210.84,0.69]
[1758710938370,13.59559401,210.87,210.85,0.69]
[1758710939179,4.94208416,210.88,210.86,0.7]
[1758710939180,13.79559401,210.88,210.86,0.7]
[1758710939389,13.79559401,210.88,210.84,0.7]
[1758710939559,13.79559401,210.88,210.85,0.7]
[1758710939760,13.79559401,210.88,210.86,0.7]
[1758710940184,18.53763027,210.88,210.84,0.7]
[1758710940372,18.53763027,210.88,210.85,0.7]
[1758710941175,19.15763027,210.88,210.83,0.7]
[1758710943294,13.79559401,210.88,210.84,0.7]
[1758710943867,13.79559401,210.88,210.85,0.7]
[1758710944084,0.2,210.88,210.85,3.04409489]
[1758710944280,0.2,210.88,210.86,3.04409489]
[1758710944677,0.2,210.88,210.87,0.7]
[1758710945088,0.2,210.88,210.87,3.04409489]
[1758710945386,0.2,210.88,210.87,7.78635315]
[1758710946303,0.2,210.88,210.87,21.38194716]
[1758710959481,0.2,210.88,210.87,13.59559401]
[1758710959789,0.2,210.88,210.87,18.33785227]
[1758710960186,0.82,210.88,210.87,13.59559401]
[1758710960383,13.59559401,210.87,210.84,4.74289074]
[1758710960587,14.21559401,210.87,210.85,13.59559401]
[1758710960786,13.79559401,210.88,210.85,13.59559401]
[1758710961382,13.79559401,210.88,210.85,18.33819214]
[1758710961583,13.79559401,210.88,210.85,18.98819214]
[1758710963308,0.2,210.88,210.86,2.99409489]
[1758710963618,0.2,210.88,210.87,7.73635315]
[1758710963792,0.2,210.88,210.87,21.33194716]
[1758710964184,0.2,210.88,210.87,57.69194716]
[1758710964386,0.2,210.88,210.87,55.34785227]
[1758710964798,0.2,210.88,210.87,18.33785227]
[1758710965000,0.2,210.88,210.87,55.34785227]
[1758710965512,0.2,210.88,210.87,57.69194716]
[1758710966614,0.2,210.88,210.87,56.84654095]
[1758710966988,0.2,210.88,210.87,43.25094694]
[1758710971511,0.2,210.88,210.87,42.60094694]
[1758710971996,0.2,210.88,210.87,43.25094694]
[1758710973592,0.2,210.88,210.87,45.1512296]
[1758710981126,0.2,210.88,210.87,7.29254092]
[1758710981348,0.2,210.88,210.87,45.1512296]
[1758710985215,0.2,210.88,210.87,8.1412296]
[1758710985420,0.2,210.88,210.87,44.4812296]
[1758710985723,0.2,210.88,210.87,42.58094694]
[1758710987721,0.2,210.88,210.87,6.24094694]
[1758710987921,0.2,210.88,210.87,42.58094694]
[1758710988811,0.2,210.88,210.87,6.24094694]
[1758710989010,0.2,210.88,210.87,42.58094694]
[1758710989208,0.2,210.88,210.85,27.49868868]
[1758710989209,0.82,210.88,210.85,27.49868868]
[1758710989523,0.82,210.88,210.82,12.50804846]
[1758710989524,0.62,210.87,210.86,36.34]
[1758710991343,13.59559401,210.86,210.81,4.74195471]
[1758710991516,0.62,210.85,210.82,36.34]
[1758710991924,0.62,210.84,210.82,36.34]
[1758710993736,18.33822747,210.86,210.82,36.34]
[1758710993930,0.62,210.85,210.82,36.34]
[1758710997525,5.36271749,210.85,210.82,36.34]
[1758710998039,5.36271749,210.85,210.8,5.40374468]
[1758710998339,0.62,210.85,210.81,36.36]
[1758710999034,5.36272082,210.85,210.8,5.40374468]
[1758710999443,5.36272082,210.85,210.81,36.36]
[1758710999834,5.36272082,210.85,210.81,37.04]
[1758711000247,5.36272082,210.85,210.81,0.68]
[1758711000422,5.36272082,210.85,210.81,37.04]
[1758711001238,5.36272082,210.85,210.81,0.68]
[1758711001428,5.36272082,210.85,210.81,37.04]
[1758711001628,15.71428269,210.84,210.76,14.93889399]
[1758711001824,4.74272082,210.85,210.69,118.21051596]
[1758711001825,13.59559401,210.8,210.74,6.92383292]
[1758711002028,0.62,210.79,210.75,36.36]
[1758711002527,0.62,210.79,210.75,37.04]
[1758711002726,1.49868868,210.83,210.76,2.17868868]
[1758711002931,13.59559401,210.84,210.78,1.49868868]
[1758711003154,13.59559401,210.84,210.79,0.68]
[1758711003324,13.59559401,210.84,210.8,0.68]
[1758711003520,14.21559401,210.84,210.8,0.68]
[1758711004024,0.62,210.83,210.79,4.74399925]
[1758711004227,13.59559401,210.82,210.79,4.74399925]
[1758711004743,13.59559401,210.83,210.79,5.42399925]
[1758711005543,13.59559401,210.83,210.8,0.68]
[1758711005738,13.59559401,210.85,210.8,0.68]
[1758711005944,13.59559401,210.85,210.81,0.68]
[1758711006430,14.21559401,210.85,210.79,6.24268793]
[1758711006630,14.21559401,210.85,210.79,6.92268793]
[1758711006831,15.09428269,210.85,210.79,5.42399925]
[1758711007024,13.59559401,210.83,210.79,5.42399925]
[1758711007224,14.21559401,210.83,210.79,5.42399925]
[1758711007423,13.59559401,210.83,210.79,4.74399925]
[1758711007621,19.83704178,210.85,210.8,0.68]
[1758711007823,20.45704178,210.85,210.8,0.68]
[1758711008021,18.9583531,210.85,210.8,0.68]
[1758711009152,20.45704178,210.85,210.8,5.4237829]
[1758711013662,13.59559401,210.83,210.8,5.4237829]
[1758711014160,6.24144777,210.85,210.79,4.74405806]
[1758711014334,14.21559401,210.83,210.79,4.74405806]
[1758711014947,14.21559401,210.83,210.79,5.42405806]
[1758711019885,14.21559401,210.82,210.75,0.68]
[1758711020061,13.59559401,210.8,210.75,0.68]
[1758711020457,13.59559401,210.8,210.76,0.68]
[1758711020662,14.21559401,210.8,210.76,0.68]
[1758711021166,14.21559401,210.8,210.76,5.42470936]
[1758711022883,14.21559401,210.8,210.74,62.36]
[1758711022884,18.33951388,210.8,210.74,43.31365452]
[1758711023061,0.62,210.79,210.74,6.95365452]
[1758711023260,0.62,210.79,210.75,0.71]
[1758711023464,18.33951388,210.8,210.75,0.71]
[1758711023662,0.62,210.8,210.76,0.71]
[1758711023881,1.49868868,210.82,210.76,0.71]
[1758711024079,6.86207353,210.82,210.76,0.71]
[1758711024361,6.86207353,210.82,210.76,5.45463961]
[1758711024578,13.59559401,210.8,210.76,5.45463961]
[1758711024774,13.59559401,210.8,210.76,4.74463961]
[1758711024968,13.59559401,210.8,210.77,0.71]
[1758711025565,13.59559401,210.8,210.76,4.74463961]
[1758711025772,13.59559401,210.8,210.76,5.45463961]
[1758711025958,13.59559401,210.8,210.76,4.74463961]
[1758711026290,13.59559401,210.8,210.76,5.45463961]
[1758711026585,15.9398383,210.82,210.77,0.71]
[1758711026791,13.59559401,210.8,210.76,4.74463961]
[1758711026960,13.59559401,210.8,210.76,5.45463961]
[1758711027160,7.08766336,210.82,210.76,5.45463961]
[1758711027379,7.70766336,210.82,210.76,5.45463961]
[1758711029189,13.59559401,210.8,210.75,7.08918919]
[1758711029395,13.59559401,210.8,210.75,5.4549449]
[1758711029396,14.21559401,210.8,210.75,5.4549449]
[1758711029599,14.21559401,210.8,210.75,7.79918919]
[1758711029763,0.62,210.79,210.75,7.79918919]
[1758711030294,13.59559401,210.8,210.75,7.79918919]
[1758711030481,14.21559401,210.8,210.75,7.79918919]
[1758711030791,14.21559401,210.8,210.76,0.71]
[1758711031386,14.21559401,210.8,210.76,5.45465086]
[1758711032485,13.59559401,210.82,210.77,0.71]
[1758711032890,18.95901098,210.82,210.78,0.71]
[1758711033592,13.59559401,210.8,210.76,4.74465086]
[1758711033976,13.59559401,210.8,210.77,0.71]
[1758711034182,21.30304712,210.83,210.77,5.45444222]
[1758711034488,1.18777955,210.82,210.78,0.71]
[1758711034690,1.80777955,210.82,210.78,0.71]
[1758711035296,11.85684368,210.85,210.79,0.71]
[1758711035297,21.30259831,210.85,210.79,0.71]
[1758711035464,13.59559401,210.82,210.77,7.79868651]
[1758711035668,13.59559401,210.8,210.78,4.74444222]
[1758711036280,13.59559401,210.8,210.77,5.45444222]
[1758711036592,13.59559401,210.8,210.77,10.90888444]
[1758711036890,2.34424429,210.81,210.77,5.45444222]
[1758711037195,17.74765408,210.8,210.74,0.71]
[1758711037388,16.5598383,210.8,210.74,14.91674182]
[1758711037790,16.5598383,210.8,210.75,4.7449068]
[1758711037971,16.5598383,210.8,210.75,5.4549068]
[1758711038293,13.59559401,210.78,210.74,14.20674182]
[1758711038590,13.59559401,210.76,210.73,4.74521192]
[1758711038789,13.59559401,210.76,210.73,5.45521192]
[1758711039365,2.34424429,210.78,210.73,5.45521192]
[1758711039793,2.96424429,210.78,210.73,5.45521192]
[1758711040474,2.96424429,210.78,210.73,4.74521192]
[1758711040795,2.96424429,210.78,210.73,5.45521192]
[1758711041092,2.96424429,210.78,210.73,4.74521192]
[1758711041296,13.59559401,210.77,210.74,0.71]
[1758711043277,13.59559401,210.77,210.72,4.74563401]
[1758711043472,13.59559401,210.77,210.73,0.71]
[1758711044397,13.59559401,210.77,210.73,5.45540852]
[1758711044586,14.21559401,210.77,210.73,5.45540852]
[1758711045587,13.59559401,210.77,210.74,0.71]
[1758711047196,13.59559401,210.77,210.73,4.74532999]
[1758711047394,14.21559401,210.77,210.73,4.74532999]
[1758711047590,14.21559401,210.77,210.73,5.45532999]
[1758711048279,13.59559401,210.77,210.73,5.45532999]
[1758711049602,13.59559401,210.77,210.74,0.71]
[1758711050476,14.21559401,210.77,210.72,5.40563401]
[1758711050677,14.21559401,210.77,210.71,16.60924037]
[1758711050678,13.59559401,210.75,210.71,14.26499608]
[1758711050883,0.62,210.74,210.7,5.40590229]
[1758711051418,13.59559401,210.75,210.7,19.01225509]
[1758711051604,13.59559401,210.75,210.71,0.66]
[1758711051900,13.59559401,210.75,210.7,19.01225509]
[1758711051901,13.59559401,210.79,210.73,2.34424429]
[1758711052106,13.59559401,210.79,210.74,0.66]
[1758711052811,13.59559401,210.79,210.75,7.08920277]
[1758711053017,13.59559401,210.79,210.76,0.66]
[1758711053198,13.59559401,210.79,210.75,4.74495848]
[1758711053512,13.59559401,210.79,210.75,5.40495848]
[1758711053513,14.21559401,210.79,210.75,5.40495848]
[1758711053717,13.59559401,210.79,210.76,0.66]
[1758711054016,4.7433779,210.83,210.77,2.34424429]
[1758711054017,13.59559401,210.83,210.77,2.34424429]
[1758711054219,13.59559401,210.81,210.78,0.66]
[1758711054889,13.59559401,210.81,210.79,5.40405806]
[1758711055290,13.59559401,210.84,210.8,0.66]
[1758711055525,1.18773648,210.83,210.8,0.66]
[1758711056621,1.18773648,210.83,210.8,5.40380662]
[1758711057926,4.15198077,210.83,210.78,5.40405806]
[1758711058099,13.59559401,210.81,210.78,0.66]
[1758711058305,2.34424429,210.83,210.79,0.66]
[1758711058619,14.21559401,210.84,210.8,0.66]
[1758711058620,1.18773614,210.82,210.8,0.66]
[1758711058935,13.59559401,210.83,210.8,0.66]
[1758711059124,1.18773614,210.82,210.78,4.74424547]
[1758711059308,21.30284451,210.84,210.79,0.66]
[1758711059498,1.18773647,210.83,210.79,0.66]
[1758711059923,1.18773647,210.83,210.79,5.40400535]
[1758711060327,4.15198076,210.83,210.79,5.40400535]
[1758711060513,1.18773647,210.82,210.79,5.40400535]
[1758711060714,2.34424429,210.83,210.8,0.66]
[1758711061021,1.18773597,210.82,210.78,5.40428313]
[1758711061223,1.18773597,210.82,210.79,0.66]
[1758711061727,1.18773597,210.82,210.8,0.66]
[1758711062101,1.18773597,210.82,210.79,4.74401629]
[1758711062307,1.18773597,210.82,210.79,5.40401629]
[1758711063953,3.53198026,210.82,210.79,0.66]
[1758711064235,1.18773597,210.81,210.79,0.68]
[1758711065021,2.34424429,210.83,210.79,0.68]
[1758711065231,1.18774521,210.82,210.8,0.68]
[1758711065526,13.59559401,210.84,210.8,0.68]
[1758711065731,15.9398383,210.86,210.8,0.68]
[1758711065910,13.59559401,210.84,210.8,0.68]
[1758711066300,2.34424429,210.86,210.81,4.74360798]
[1758711066301,15.9398383,210.86,210.81,4.74360798]
[1758711066504,13.59559401,210.84,210.82,0.68]
[1758711067129,0.62,210.86,210.82,0.68]
[1758711067336,15.40320282,210.86,210.82,0.68]
[1758711067515,13.59559401,210.84,210.82,0.68]
[1758711067926,0.62,210.86,210.82,5.42334258]
[1758711068221,15.40320249,210.86,210.82,5.42334258]
[1758711068409,13.59559401,210.84,210.82,4.74334258]
[1758711068615,13.59559401,210.84,210.83,0.68]
[1758711068810,0.2,210.88,210.83,3.02424429]
[1758711069037,14.98310301,210.88,210.84,0.68]
[1758711069242,13.79559401,210.88,210.84,0.68]
[1758711069426,13.59559401,210.86,210.81,0.68]
[1758711070130,14.21559401,210.86,210.81,5.42334258]
[1758711070331,13.79559401,210.88,210.82,0.68]
[1758711070639,13.59559401,210.86,210.82,3.02424429]
[1758711070836,0.2,210.88,210.83,0.68]
[1758711070837,13.79559401,210.88,210.83,0.68]
[1758711071130,13.59559401,210.86,210.84,0.68]
[1758711071316,14.41559401,210.88,210.84,0.68]
[1758711071520,14.41559401,210.88,210.81,2.34424429]
[1758711071521,13.59559401,210.86,210.81,3.02424429]
[1758711071838,13.59559401,210.86,210.82,0.68]
[1758711072015,13.59559401,210.86,210.83,0.68]
[1758711072211,20.88190042,210.88,210.81,4.74334258]
[1758711072431,20.88190042,210.88,210.82,0.68]
[1758711072432,13.59559401,210.86,210.82,0.68]
[1758711072617,13.59559401,210.86,210.82,5.42338298]
[1758711072816,13.59559401,210.86,210.83,0.68]
[1758711073309,13.59559401,210.86,210.84,4.74293302]
[1758711073932,16.1398383,210.88,210.84,4.74293302]
[1758711074136,13.59559401,210.86,210.84,5.42293302]
[1758711075636,2.54424429,210.88,210.84,5.42293302]
[1758711075836,16.7598383,210.88,210.84,5.42293302]
[1758711080118,16.7598383,210.88,210.84,4.74293302]
[1758711080310,16.7598383,210.88,210.82,4.74338298]
[1758711080515,16.7598383,210.88,210.83,0.68]
[1758711081847,16.7598383,210.88,210.78,0.66]
[1758711081848,13.59559401,210.83,210.78,0.66]
[1758711082056,13.59559401,210.83,210.78,5.40424047]
[1758711082346,13.59559401,210.84,210.79,0.66]
[1758711082914,13.59559401,210.84,210.78,16.60494831]
[1758711083126,13.59559401,210.84,210.79,0.66]
[1758711083329,13.59559401,210.84,210.8,0.66]
[1758711084041,13.59559401,210.84,210.81,0.66]
[1758711084434,13.59559401,210.86,210.81,0.66]
[1758711084634,13.59559401,210.86,210.81,3.00424429]
[1758711084844,13.59559401,210.86,210.82,0.66]
[1758711085748,14.21559401,210.86,210.82,0.66]
[1758711086751,14.21559401,210.86,210.83,4.74315799]
[1758711087345,13.59559401,210.86,210.83,4.74315799]
[1758711093631,2.11937986,210.84,210.79,0.66]
[1758711093827,2.11937986,210.84,210.78,4.74425887]
[1758711093828,15.71497387,210.84,210.78,4.74425887]
[1758711094148,15.71497387,210.84,210.78,5.40425887]
[1758711094346,20.45793703,210.84,210.78,5.40425887]
[1758711094543,15.71497387,210.84,210.79,0.66]
[1758711094940,14.21559401,210.84,210.79,0.66]
[1758711095252,15.09497387,210.87,210.8,2.15937986]
[1758711095463,13.59559401,210.85,210.82,1.49937986]
[1758711095644,13.59559401,210.85,210.83,0.66]
[1758711095842,13.79559401,210.88,210.84,0.66]
[1758711096054,1.18754586,210.87,210.82,0.66]
[1758711096255,1.18754586,210.87,210.84,4.74293302]
[1758711097156,1.80754586,210.87,210.83,5.40311965]
[1758711097538,1.18754586,210.87,210.83,5.40311965]
[1758711101167,1.18754586,210.87,210.84,5.4028857]
[1758711104367,13.59559401,210.85,210.84,4.7428857]
[1758711104963,13.79559401,210.88,210.84,5.4028857]
[1758711105172,1.18751804,210.87,210.85,0.66]
[1758711105370,1.18751804,210.87,210.85,2.15937986]
[1758711105547,0.2,210.88,210.86,0.66]
[1758711106074,1.38739933,210.88,210.86,0.66]
[1758711106255,1.38739933,210.88,210.84,18.09959813]
[1758711106446,1.38739933,210.88,210.85,0.66]
[1758711106847,1.38739933,210.88,210.86,4.74248316]
[1758711107069,1.38739933,210.88,210.87,0.66]
[1758711108269,1.38739933,210.88,210.87,5.40225826]
[1758711111047,14.98299334,210.88,210.87,5.40225826]
[1758711115280,13.79559401,210.88,210.87,5.40225826]
[1758711116277,13.79559401,210.88,210.87,5.43225826]
[1758711119573,0.2,210.88,210.87,6.93163812]
[1758711119872,0.2,210.88,210.87,5.43225826]
[1758711121072,0.2,210.88,210.87,6.93163812]
[1758711125867,0.2,210.88,210.87,5.43225826]
[1758711126785,0.2,210.88,210.87,6.93163812]
[1758711143903,0.2,210.88,210.87,8.83210136]
[1758711144071,0.2,210.93,210.87,44.39903832]
[1758711144374,0.2,210.93,210.92,6.24051393]
[1758711144773,0.2,210.93,210.92,6.95051393]
[1758711146177,0.2,210.93,210.92,43.29051393]
[1758711146690,0.2,210.94,210.92,71.36503122]
[1758711146895,0.2,210.96,210.95,26.0]
[1758711147066,0.2,210.97,210.95,63.98154143]
[1758711147388,0.2,211.01,210.96,2.20937986]
[1758711147591,0.2,211.01,211.0,1.49937986]
[1758711147799,0.2,211.01,211.0,38.54937986]
[1758711148490,0.2,211.01,211.0,43.28871635]
[1758711148694,0.2,211.01,211.0,44.12757748]
[1758711149191,0.2,211.01,211.0,70.12757748]
[1758711149368,0.2,211.02,211.0,44.26973905]
[1758711149566,0.2,211.02,211.01,3.04824099]
[1758711149769,0.2,211.05,211.02,26.0]
[1758711149993,0.2,211.05,211.02,26.71]
[1758711150978,0.2,211.05,211.02,33.92928986]
[1758711152386,0.2,211.05,211.02,35.82803905]
[1758711152993,0.2,211.05,211.02,72.00587748]
[1758711153386,0.2,211.05,211.02,34.97587748]
[1758711153586,0.2,211.05,211.02,71.29587748]
[1758711154296,0.2,211.05,211.02,72.00587748]
[1758711155404,0.2,211.05,211.02,71.29587748]
[1758711155608,0.2,211.05,211.02,72.00587748]
[1758711156586,0.2,211.05,211.02,71.29587748]
[1758711156908,0.2,211.05,211.02,69.39712829]
[1758711158000,0.2,211.05,211.02,70.10712829]
[1758711158203,0.2,211.05,211.02,72.00614792]
[1758711159809,0.2,211.05,211.02,68.95790693]
[1758711160112,0.2,211.05,211.02,71.29614792]
[1758711160406,0.2,211.05,211.02,69.39712829]
[1758711161111,0.2,211.05,211.02,71.29614793]
[1758711161908,0.2,211.05,211.02,69.39712829]
[1758711162106,0.2,211.05,211.02,71.29614792]
[1758711162489,0.2,211.05,211.02,72.00614792]
[1758711166603,0.2,211.05,211.02,71.29614792]
[1758711167113,0.2,211.05,211.02,72.00614792]
[1758711167488,0.2,211.05,211.02,35.68614792]
[1758711167693,0.2,211.05,211.02,71.98614792]
[1758711171599,0.2,211.05,211.02,71.27614792]
[1758711172708,0.2,211.05,211.02,69.37712829]
[1758711173735,0.2,211.05,211.02,71.96614792]
[1758711174327,0.2,211.05,211.02,70.06712829]
[1758711174932,0.2,211.05,211.02,33.76712829]
[1758711175130,0.86,211.03,211.01,1.89901963]
[1758711175300,0.66,211.02,211.01,1.89901963]
[1758711175504,14.25559401,211.02,211.01,1.89901963]
[1758711175706,13.59559401,211.01,210.96,28.03824099]
[1758711175907,0.66,211.0,210.96,25.7]
[1758711176121,0.66,210.99,210.96,25.7]
[1758711176337,0.66,210.98,210.96,25.7]
[1758711176538,13.59559401,211.01,210.95,2.33824099]
[1758711176706,13.59559401,211.01,210.96,36.3]
[1758711176905,18.33478318,211.01,210.96,36.3]
[1758711177224,0.66,211.0,210.96,38.63824099]
[1758711177423,0.66,210.99,210.96,38.63824099]
[1758711177601,13.59559401,211.01,210.96,43.37834896]
[1758711177805,13.59559401,211.02,211.0,2.33824099]
[1758711178426,0.66,211.01,210.99,36.3]
[1758711178727,0.66,211.0,210.99,36.3]
[1758711178911,0.66,211.0,210.98,2.33824099]
[1758711179116,0.86,211.03,210.99,38.63824099]
[1758711179427,14.50559401,211.03,211.0,2.33824099]
[1758711180306,0.71,211.02,211.0,2.33824099]
[1758711180512,0.71,211.01,210.99,36.3]
[1758711181109,19.2443853,211.03,210.99,36.3]
[1758711181315,0.71,211.02,210.99,36.3]
[1758711181829,20.87262629,211.03,210.96,4.74001531]
[1758711181830,0.71,211.01,210.96,4.74001531]
[1758711182013,0.71,211.0,210.97,36.3]
[1758711182334,13.59559401,211.01,210.97,41.72993785]
[1758711182711,7.27703228,211.03,210.97,41.72993785]
[1758711183028,3.04824099,211.01,210.97,36.3]
[1758711183234,0.71,211.0,210.97,36.3]
[1758711183430,0.71,211.0,210.97,41.03997087]
[1758711183629,14.30559401,211.02,210.97,41.03997087]
[1758711183927,0.71,211.01,210.96,4.74021865]
[1758711184129,18.5343853,211.03,210.97,36.3]
[1758711184335,21.38280623,211.02,210.97,36.99]
[1758711184632,0.71,211.01,210.97,36.3]
[1758711184835,0.71,211.0,210.97,36.3]
[1758711186423,0.91,211.03,210.98,0.69]
[1758711186630,3.24824099,211.03,210.98,0.69]
[1758711186938,0.91,211.03,210.98,0.69]
[1758711187834,5.64869483,211.03,210.98,0.69]
[1758711188212,13.59559401,211.01,210.96,36.3]
[1758711188432,14.30559401,211.01,210.97,4.74001042]
[1758711188736,14.30559401,211.01,210.97,5.43001042]
[1758711189238,3.04824099,211.0,210.95,0.69]
[1758711189435,2.33824099,211.0,210.96,36.99]
[1758711189626,0.71,211.0,210.96,36.99]
[1758711189820,15.933835,211.01,210.97,0.69]
[1758711190028,13.59559401,211.02,210.98,0.69]
[1758711190248,0.2,211.03,211.0,2.33824099]
[1758711190426,0.2,211.03,211.02,7.07712829]
[1758711190752,0.2,211.03,211.02,43.39712829]
[1758711190948,0.2,211.03,211.02,44.08712829]
[1758711192310,0.2,211.03,211.02,41.7488873]
[1758711192512,0.2,211.03,211.01,1.8991098]
[1758711192738,0.2,211.03,211.02,36.32]
[1758711193955,0.2,211.03,211.02,37.01]
[1758711194321,0.2,211.03,211.02,41.7488873]
[1758711194533,0.2,211.03,211.02,44.08712829]
[1758711195067,0.2,211.03,211.02,45.98614792]
[1758711202649,0.2,211.03,211.02,7.32790693]
[1758711202862,0.2,211.03,211.02,43.63790693]
[1758711203645,0.2,211.03,211.02,45.97614792]
[1758711207870,0.2,211.03,211.02,44.07712829]
[1758711208048,0.2,211.03,211.02,7.75712829]
[1758711208445,0.2,211.03,211.02,44.05712829]
[1758711208647,0.2,211.03,211.02,43.21512838]
[1758711209443,0.2,211.03,211.02,42.53512838]
[1758711209644,0.2,211.03,211.02,41.0388873]
[1758711209840,0.2,211.03,210.99,92.04869079]
[1758711210067,0.91,211.03,210.99,11.84869079]
[1758711210264,0.2,211.03,211.0,36.3]